[Event "Titled Tuesday Blitz May 25 2021"]
[White "Martin Carmona, Gaston Manuel"]
[Black "Gahan, M G"]
[WhiteFideId "22284567"]
[BlackFideId "5027373"]
[WhiteElo "2144"]
[BlackElo "2264"]
[Result "1-0"]
[Round "05"]
[TimeControl "180+1"]
[Date "2021.05.25"]
[WhiteClock "0:00:19"]
[BlackClock "0:01:39"]

1. e4 {[%clk 0:01:09]}  c5 {[%clk 0:02:58]} 2. Nf3 {[%clk 0:01:06]}  d6 {[%clk 0:02:58]} 3. d4 {[%clk 0:01:07]}  cxd4 {[%clk 0:02:58]} 4. Nxd4 {[%clk 0:01:08]}  Nf6 {[%clk 0:02:59]} 5. Nc3 {[%clk 0:01:06]}  a6 {[%clk 0:02:59]} 6. Be2 {[%clk 0:01:02]}  e5 {[%clk 0:02:59]} 7. Nb3 {[%clk 0:01:03]}  Be7 {[%clk 0:02:59]} 8. O-O {[%clk 0:01:04]}  O-O {[%clk 0:02:58]} 9. Re1 {[%clk 0:01:04]}  Qc7 {[%clk 0:02:55]} 10. Bf1 {[%clk 0:01:04]}  Re8 {[%clk 0:02:50]} 11. Bg5 {[%clk 0:00:57]}  Be6 {[%clk 0:02:48]} 12. Bxf6 {[%clk 0:00:51]}  Bxf6 {[%clk 0:02:48]} 13. Nd5 {[%clk 0:00:52]}  Bxd5 {[%clk 0:02:47]} 14. Qxd5 {[%clk 0:00:46]}  Nc6 {[%clk 0:02:47]} 15. c3 {[%clk 0:00:46]}  Ne7 {[%clk 0:02:45]} 16. Qd3 {[%clk 0:00:44]}  Rad8 {[%clk 0:02:45]} 17. Rad1 {[%clk 0:00:43]}  d5 {[%clk 0:02:45]} 18. exd5 {[%clk 0:00:43]}  Rxd5 {[%clk 0:02:45]} 19. Qe4 {[%clk 0:00:43]}  Red8 {[%clk 0:02:41]} 20. Bd3 {[%clk 0:00:40]}  g6 {[%clk 0:02:38]} 21. Bc2 {[%clk 0:00:40]}  Rxd1 {[%clk 0:02:37]} 22. Rxd1 {[%clk 0:00:41]}  Rxd1+ {[%clk 0:02:37]} 23. Bxd1 {[%clk 0:00:42]}  Bg7 {[%clk 0:02:32]} 24. Be2 {[%clk 0:00:33]}  b5 {[%clk 0:02:29]} 25. Qa8+ {[%clk 0:00:31]}  Qc8 {[%clk 0:02:29]} 26. Qxc8+ {[%clk 0:00:30]}  Nxc8 {[%clk 0:02:30]} 27. Nc5 {[%clk 0:00:30]}  Nb6 {[%clk 0:02:19]} 28. Nxa6 {[%clk 0:00:29]}  Na4 {[%clk 0:02:19]} 29. Bxb5 {[%clk 0:00:29]}  Nxb2 {[%clk 0:02:20]} 30. c4 {[%clk 0:00:30]}  e4 {[%clk 0:02:11]} 31. c5 {[%clk 0:00:29]}  Be5 {[%clk 0:02:09]} 32. c6 {[%clk 0:00:29]}  Nd3 {[%clk 0:02:00]} 33. c7 {[%clk 0:00:29]}  Bxc7 {[%clk 0:02:01]} 34. Nxc7 {[%clk 0:00:29]}  Nc5 {[%clk 0:01:53]} 35. a4 {[%clk 0:00:29]}  Nb7 {[%clk 0:01:53]} 36. Nd5 {[%clk 0:00:27]}  f5 {[%clk 0:01:53]} 37. Ne7+ {[%clk 0:00:26]}  Kf7 {[%clk 0:01:53]} 38. Nc6 {[%clk 0:00:27]}  Ke6 {[%clk 0:01:51]} 39. a5 {[%clk 0:00:28]}  Nd6 {[%clk 0:01:49]} 40. Be2 {[%clk 0:00:26]}  Kd7 {[%clk 0:01:49]} 41. Nd4 {[%clk 0:00:23]}  Kc7 {[%clk 0:01:48]} 42. Nb5+ {[%clk 0:00:23]}  Nxb5 {[%clk 0:01:48]} 43. Bxb5 {[%clk 0:00:24]}  Kb7 {[%clk 0:01:48]} 44. a6+ {[%clk 0:00:23]}  Kb6 {[%clk 0:01:48]} 45. Bc4 {[%clk 0:00:24]}  g5 {[%clk 0:01:46]} 46. Kf1 {[%clk 0:00:22]}  h6 {[%clk 0:01:46]} 47. Ke2 {[%clk 0:00:22]}  f4 {[%clk 0:01:46]} 48. Kd2 {[%clk 0:00:22]}  h5 {[%clk 0:01:43]} 49. Kc3 {[%clk 0:00:22]}  g4 {[%clk 0:01:41]} 50. Kd4 {[%clk 0:00:21]}  f3 {[%clk 0:01:39]} 51. g3 {[%clk 0:00:19]} 1-0


[Site "https://www.chess.com"]

[Event "Titled Tuesday Blitz May 25 2021"]
[White "Matinian, Nikita"]
[Black "Perez, Maximiliano"]
[WhiteFideId "24129100"]
[BlackFideId "117234"]
[WhiteElo "2410"]
[BlackElo "2368"]
[Result "0-1"]
[Round "05"]
[TimeControl "180+1"]
[Date "2021.05.25"]
[WhiteClock "0:00:03"]
[BlackClock "0:00:19"]

1. e4 {[%clk 0:00:52]}  c5 {[%clk 0:02:48]} 2. Nf3 {[%clk 0:00:51]}  d6 {[%clk 0:02:48]} 3. d4 {[%clk 0:00:50]}  cxd4 {[%clk 0:02:48]} 4. Nxd4 {[%clk 0:00:51]}  Nf6 {[%clk 0:02:48]} 5. Nc3 {[%clk 0:00:52]}  a6 {[%clk 0:02:48]} 6. Bg5 {[%clk 0:00:52]}  e6 {[%clk 0:02:48]} 7. f4 {[%clk 0:00:51]}  Nbd7 {[%clk 0:02:47]} 8. Qf3 {[%clk 0:00:50]}  h6 {[%clk 0:02:47]} 9. Bh4 {[%clk 0:00:50]}  e5 {[%clk 0:02:46]} 10. Nf5 {[%clk 0:00:49]}  exf4 {[%clk 0:02:46]} 11. O-O-O {[%clk 0:00:48]}  g5 {[%clk 0:02:45]} 12. Bf2 {[%clk 0:00:47]}  Ne5 {[%clk 0:02:45]} 13. Qe2 {[%clk 0:00:45]}  Bxf5 {[%clk 0:02:44]} 14. exf5 {[%clk 0:00:46]}  Qa5 {[%clk 0:02:30]} 15. h4 {[%clk 0:00:45]}  Rg8 {[%clk 0:02:24]} 16. hxg5 {[%clk 0:00:45]}  hxg5 {[%clk 0:02:25]} 17. Bd4 {[%clk 0:00:37]}  O-O-O {[%clk 0:02:23]} 18. Bxe5 {[%clk 0:00:36]}  dxe5 {[%clk 0:02:20]} 19. Qc4+ {[%clk 0:00:36]}  Qc7 {[%clk 0:02:14]} 20. Rxd8+ {[%clk 0:00:31]}  Kxd8 {[%clk 0:02:15]} 21. Qb3 {[%clk 0:00:27]}  Bc5 {[%clk 0:01:22]} 22. Bc4 {[%clk 0:00:27]}  Ke8 {[%clk 0:01:21]} 23. Rd1 {[%clk 0:00:22]}  Bd4 {[%clk 0:01:16]} 24. Ne2 {[%clk 0:00:18]}  b5 {[%clk 0:01:15]} 25. Nxd4 {[%clk 0:00:19]}  Qxc4 {[%clk 0:00:49]} 26. Qxc4 {[%clk 0:00:13]}  bxc4 {[%clk 0:00:50]} 27. Nc6 {[%clk 0:00:14]}  Nd7 {[%clk 0:00:49]} 28. Rd5 {[%clk 0:00:12]}  f6 {[%clk 0:00:46]} 29. Rd6 {[%clk 0:00:11]}  g4 {[%clk 0:00:41]} 30. Kd2 {[%clk 0:00:07]}  Nc5 {[%clk 0:00:20]} 31. b4 {[%clk 0:00:03]}  Ne4+ {[%clk 0:00:19]} 0-1


[Site "https://www.chess.com"]

[Event "Titled Tuesday Blitz May 25 2021"]
[White "Mikhalsky, Vladimir"]
[Black "Zakhartsov, Vladimir"]
[WhiteFideId "14144352"]
[BlackFideId "4145097"]
[WhiteElo "2280"]
[BlackElo "2462"]
[Result "0-1"]
[Round "05"]
[TimeControl "180+1"]
[Date "2021.05.25"]
[WhiteClock "0:00:01"]
[BlackClock "0:00:06"]

1. c4 {[%clk 0:02:58]}  e5 {[%clk 0:02:59]} 2. Nc3 {[%clk 0:02:57]}  Nf6 {[%clk 0:02:59]} 3. g3 {[%clk 0:02:56]}  Bb4 {[%clk 0:02:59]} 4. Bg2 {[%clk 0:02:55]}  O-O {[%clk 0:02:59]} 5. e4 {[%clk 0:02:48]}  Nc6 {[%clk 0:02:55]} 6. Nge2 {[%clk 0:02:48]}  d6 {[%clk 0:02:54]} 7. h3 {[%clk 0:02:43]}  Bc5 {[%clk 0:02:46]} 8. O-O {[%clk 0:02:41]}  a6 {[%clk 0:02:46]} 9. d3 {[%clk 0:02:37]}  Be6 {[%clk 0:02:41]} 10. Kh2 {[%clk 0:02:36]}  Nd7 {[%clk 0:02:40]} 11. g4 {[%clk 0:02:29]}  f6 {[%clk 0:02:27]} 12. f4 {[%clk 0:02:29]}  Nd4 {[%clk 0:02:20]} 13. f5 {[%clk 0:02:24]}  Bf7 {[%clk 0:02:20]} 14. Ng3 {[%clk 0:02:18]}  b5 {[%clk 0:02:19]} 15. b3 {[%clk 0:02:16]}  c6 {[%clk 0:02:19]} 16. h4 {[%clk 0:02:10]}  Re8 {[%clk 0:02:09]} 17. g5 {[%clk 0:02:09]}  Kf8 {[%clk 0:02:09]} 18. g6 {[%clk 0:02:01]}  hxg6 {[%clk 0:02:00]} 19. fxg6 {[%clk 0:02:01]}  Bxg6 {[%clk 0:02:00]} 20. Qg4 {[%clk 0:02:01]}  Bf7 {[%clk 0:01:57]} 21. h5 {[%clk 0:01:51]}  Ke7 {[%clk 0:01:36]} 22. Be3 {[%clk 0:01:37]}  Rg8 {[%clk 0:01:27]} 23. Bxd4 {[%clk 0:01:28]}  exd4 {[%clk 0:01:25]} 24. Nf5+ {[%clk 0:01:28]}  Kf8 {[%clk 0:01:26]} 25. Ne2 {[%clk 0:01:17]}  Ne5 {[%clk 0:01:26]} 26. Qg3 {[%clk 0:01:14]}  Bxh5 {[%clk 0:01:14]} 27. Nexd4 {[%clk 0:01:04]}  Bf7 {[%clk 0:01:13]} 28. Bh3 {[%clk 0:00:51]}  g6 {[%clk 0:00:59]} 29. Qh4 {[%clk 0:00:25]}  Bxd4 {[%clk 0:00:39]} 30. Nxd4 {[%clk 0:00:23]}  Kg7 {[%clk 0:00:36]} 31. Rg1 {[%clk 0:00:21]}  Rh8 {[%clk 0:00:20]} 32. Nf5+ {[%clk 0:00:19]}  Kg8 {[%clk 0:00:21]} 33. Qg3 {[%clk 0:00:17]}  Kf8 {[%clk 0:00:19]} 34. d4 {[%clk 0:00:16]}  gxf5 {[%clk 0:00:17]} 35. dxe5 {[%clk 0:00:16]}  dxe5 {[%clk 0:00:14]} 36. Rad1 {[%clk 0:00:13]}  Qc7 {[%clk 0:00:10]} 37. exf5 {[%clk 0:00:08]}  Ke7 {[%clk 0:00:10]} 38. Qe3 {[%clk 0:00:07]}  c5 {[%clk 0:00:09]} 39. cxb5 {[%clk 0:00:07]}  axb5 {[%clk 0:00:10]} 40. Qe2 {[%clk 0:00:07]}  Rh4 {[%clk 0:00:06]} 41. Rg7 {[%clk 0:00:07]}  Rah8 {[%clk 0:00:05]} 42. Rg3 {[%clk 0:00:06]}  c4 {[%clk 0:00:05]} 43. Qe3 {[%clk 0:00:06]}  e4 {[%clk 0:00:05]} 44. bxc4 {[%clk 0:00:05]}  Rxh3+ {[%clk 0:00:05]} 45. Kg2 {[%clk 0:00:05]}  Qxg3+ {[%clk 0:00:05]} 46. Qxg3 {[%clk 0:00:05]}  Rxg3+ {[%clk 0:00:06]} 47. Kxg3 {[%clk 0:00:05]}  Bxc4 {[%clk 0:00:06]} 48. Rd4 {[%clk 0:00:05]}  Bd3 {[%clk 0:00:06]} 49. Rb4 {[%clk 0:00:05]}  Ra8 {[%clk 0:00:06]} 50. Kf4 {[%clk 0:00:05]}  Rxa2 {[%clk 0:00:06]} 51. Rd4 {[%clk 0:00:05]}  Ra4 {[%clk 0:00:06]} 52. Rd5 {[%clk 0:00:04]}  b4 {[%clk 0:00:06]} 53. Rc5 {[%clk 0:00:04]}  b3 {[%clk 0:00:06]} 54. Rc7+ {[%clk 0:00:03]}  Kd6 {[%clk 0:00:06]} 55. Rb7 {[%clk 0:00:03]}  Bc2 {[%clk 0:00:07]} 56. Ke3 {[%clk 0:00:02]}  Kc5 {[%clk 0:00:06]} 57. Rc7+ {[%clk 0:00:01]}  Kb6 {[%clk 0:00:07]} 58. Rf7 {[%clk 0:00:01]}  b2 {[%clk 0:00:06]} 59. Rxf6+ {[%clk 0:00:01]}  Kc5 {[%clk 0:00:06]} 0-1


[Site "https://www.chess.com"]

[Event "Titled Tuesday Blitz May 25 2021"]
[White "Milanovic, Vojislav"]
[Black "Piesik, Piotr"]
[WhiteFideId "905046"]
[BlackFideId "1136194"]
[WhiteElo "2361"]
[BlackElo "2369"]
[Result "0-1"]
[Round "05"]
[TimeControl "180+1"]
[Date "2021.05.25"]
[WhiteClock "0:00:00"]
[BlackClock "0:00:43"]

1. e4 {[%clk 0:03:00]}  g6 {[%clk 0:02:59]} 2. d4 {[%clk 0:02:59]}  Bg7 {[%clk 0:02:59]} 3. Nc3 {[%clk 0:03:00]}  c6 {[%clk 0:02:59]} 4. Nf3 {[%clk 0:02:58]}  d6 {[%clk 0:03:00]} 5. h3 {[%clk 0:02:55]}  Nf6 {[%clk 0:03:00]} 6. a4 {[%clk 0:02:51]}  O-O {[%clk 0:03:00]} 7. Be3 {[%clk 0:02:51]}  Nbd7 {[%clk 0:03:00]} 8. Qd2 {[%clk 0:02:51]}  Qc7 {[%clk 0:02:59]} 9. Bc4 {[%clk 0:02:48]}  b6 {[%clk 0:02:55]} 10. Bb3 {[%clk 0:02:44]}  a6 {[%clk 0:02:52]} 11. O-O {[%clk 0:02:42]}  Bb7 {[%clk 0:02:52]} 12. Rfe1 {[%clk 0:02:33]}  b5 {[%clk 0:02:47]} 13. axb5 {[%clk 0:02:11]}  axb5 {[%clk 0:02:46]} 14. Rxa8 {[%clk 0:02:09]}  Bxa8 {[%clk 0:02:44]} 15. Bh6 {[%clk 0:02:06]}  e5 {[%clk 0:02:43]} 16. Bxg7 {[%clk 0:02:04]}  Kxg7 {[%clk 0:02:43]} 17. dxe5 {[%clk 0:01:52]}  dxe5 {[%clk 0:02:43]} 18. Qe3 {[%clk 0:01:49]}  Bb7 {[%clk 0:02:31]} 19. Nh4 {[%clk 0:01:39]}  h6 {[%clk 0:02:25]} 20. Rd1 {[%clk 0:01:35]}  Qb6 {[%clk 0:02:16]} 21. Qg3 {[%clk 0:01:26]}  Nh5 {[%clk 0:02:13]} 22. Nf5+ {[%clk 0:01:06]}  Kh7 {[%clk 0:02:13]} 23. Qh4 {[%clk 0:01:06]}  Ndf6 {[%clk 0:01:51]} 24. Nd6 {[%clk 0:00:57]}  Kg7 {[%clk 0:01:46]} 25. Nf5+ {[%clk 0:00:21]}  gxf5 {[%clk 0:01:42]} 26. g4 {[%clk 0:00:20]}  fxg4 {[%clk 0:01:20]} 27. hxg4 {[%clk 0:00:20]}  Nf4 {[%clk 0:01:20]} 28. Rd6 {[%clk 0:00:18]}  Ng8 {[%clk 0:01:09]} 29. Nd5 {[%clk 0:00:14]}  Qc5 {[%clk 0:00:55]} 30. Ne3 {[%clk 0:00:08]}  Bc8 {[%clk 0:00:50]} 31. Rd2 {[%clk 0:00:01]}  Qe7 {[%clk 0:00:46]} 32. Qg3 {[%clk 0:00:00]}  Rd8 {[%clk 0:00:43]} 0-1


[Site "https://www.chess.com"]

[Event "Titled Tuesday Blitz May 25 2021"]
[White "Nesterov, Arseniy"]
[Black "Kjartansson, David"]
[WhiteFideId "24198455"]
[BlackFideId "2301130"]
[WhiteElo "2814"]
[BlackElo "2578"]
[Result "1-0"]
[Round "05"]
[TimeControl "180+1"]
[Date "2021.05.25"]
[WhiteClock "0:00:13"]
[BlackClock "0:00:01"]

1. d4 {[%clk 0:03:00]}  Nf6 {[%clk 0:02:51]} 2. c4 {[%clk 0:03:01]}  e6 {[%clk 0:02:51]} 3. Nf3 {[%clk 0:03:00]}  Bb4+ {[%clk 0:02:50]} 4. Bd2 {[%clk 0:03:00]}  c5 {[%clk 0:02:49]} 5. Bxb4 {[%clk 0:02:59]}  cxb4 {[%clk 0:02:49]} 6. g3 {[%clk 0:03:00]}  b6 {[%clk 0:02:46]} 7. Bg2 {[%clk 0:03:00]}  Bb7 {[%clk 0:02:45]} 8. O-O {[%clk 0:03:01]}  O-O {[%clk 0:02:43]} 9. a3 {[%clk 0:03:01]}  Qe7 {[%clk 0:02:32]} 10. axb4 {[%clk 0:02:51]}  Qxb4 {[%clk 0:02:33]} 11. Qc2 {[%clk 0:02:50]}  Rc8 {[%clk 0:02:29]} 12. b3 {[%clk 0:02:47]}  Be4 {[%clk 0:02:24]} 13. Qc3 {[%clk 0:02:45]}  Nc6 {[%clk 0:02:21]} 14. Qxb4 {[%clk 0:02:39]}  Nxb4 {[%clk 0:02:22]} 15. Nc3 {[%clk 0:02:39]}  d5 {[%clk 0:02:20]} 16. Nxe4 {[%clk 0:02:35]}  Nxe4 {[%clk 0:02:19]} 17. Ne5 {[%clk 0:02:29]}  Nc2 {[%clk 0:02:01]} 18. Bxe4 {[%clk 0:01:40]}  Nxa1 {[%clk 0:01:49]} 19. cxd5 {[%clk 0:01:40]}  Nxb3 {[%clk 0:01:23]} 20. dxe6 {[%clk 0:01:39]}  fxe6 {[%clk 0:01:23]} 21. Bxa8 {[%clk 0:01:37]}  Rxa8 {[%clk 0:01:23]} 22. Nc6 {[%clk 0:01:24]}  a5 {[%clk 0:01:18]} 23. e4 {[%clk 0:01:22]}  a4 {[%clk 0:01:14]} 24. d5 {[%clk 0:01:22]}  Kf7 {[%clk 0:00:42]} 25. Rb1 {[%clk 0:01:10]}  b5 {[%clk 0:00:36]} 26. d6 {[%clk 0:01:03]}  Ke8 {[%clk 0:00:34]} 27. Nb4 {[%clk 0:00:54]}  Kd7 {[%clk 0:00:31]} 28. e5 {[%clk 0:00:54]}  Rc8 {[%clk 0:00:31]} 29. Rb2 {[%clk 0:00:44]}  g5 {[%clk 0:00:27]} 30. Re2 {[%clk 0:00:36]}  Rc4 {[%clk 0:00:20]} 31. Nc2 {[%clk 0:00:24]}  g4 {[%clk 0:00:19]} 32. Ne3 {[%clk 0:00:18]}  Rc1+ {[%clk 0:00:19]} 33. Kg2 {[%clk 0:00:18]}  h5 {[%clk 0:00:19]} 34. Nc2 {[%clk 0:00:16]}  Nc5 {[%clk 0:00:17]} 35. Nd4 {[%clk 0:00:14]}  b4 {[%clk 0:00:16]} 36. f3 {[%clk 0:00:12]}  b3 {[%clk 0:00:16]} 37. fxg4 {[%clk 0:00:12]}  hxg4 {[%clk 0:00:16]} 38. Rf2 {[%clk 0:00:12]}  Ne4 {[%clk 0:00:02]} 39. Rf7+ {[%clk 0:00:12]}  Kc8 {[%clk 0:00:01]} 40. d7+ {[%clk 0:00:12]}  Kc7 {[%clk 0:00:02]} 41. Nxe6+ {[%clk 0:00:13]}  Kc6 {[%clk 0:00:02]} 42. d8=Q {[%clk 0:00:14]}  Rc2+ {[%clk 0:00:02]} 43. Kf1 {[%clk 0:00:13]}  Nd2+ {[%clk 0:00:01]} 44. Ke1 {[%clk 0:00:12]}  Nf3+ {[%clk 0:00:01]} 45. Rxf3 {[%clk 0:00:13]} 1-0


[Site "https://www.chess.com"]

[Event "Titled Tuesday Blitz May 25 2021"]
[White "Nguyen, Van Huy"]
[Black "Budiarti, Farah Yumna"]
[WhiteFideId "12401064"]
[BlackFideId "7107331"]
[WhiteElo "2443"]
[BlackElo "2514"]
[Result "1-0"]
[Round "05"]
[TimeControl "180+1"]
[Date "2021.05.25"]
[WhiteClock "0:00:43"]
[BlackClock "0:00:02"]

1. d4 {[%clk 0:03:00]}  Nf6 {[%clk 0:02:58]} 2. Nf3 {[%clk 0:03:00]}  d5 {[%clk 0:02:54]} 3. c4 {[%clk 0:03:00]}  c6 {[%clk 0:02:54]} 4. Qb3 {[%clk 0:03:00]}  e6 {[%clk 0:02:52]} 5. g3 {[%clk 0:03:00]}  Bd6 {[%clk 0:02:51]} 6. Bg2 {[%clk 0:03:00]}  O-O {[%clk 0:02:51]} 7. O-O {[%clk 0:03:00]}  Nbd7 {[%clk 0:02:52]} 8. Nc3 {[%clk 0:02:57]}  b6 {[%clk 0:02:52]} 9. e4 {[%clk 0:02:57]}  Nxe4 {[%clk 0:02:47]} 10. Nxe4 {[%clk 0:02:57]}  dxe4 {[%clk 0:02:48]} 11. Ng5 {[%clk 0:02:57]}  Bb7 {[%clk 0:02:45]} 12. Nxe4 {[%clk 0:02:57]}  Be7 {[%clk 0:02:45]} 13. Bf4 {[%clk 0:02:57]}  c5 {[%clk 0:02:38]} 14. Nf6+ {[%clk 0:02:53]}  Bxf6 {[%clk 0:02:34]} 15. Bxb7 {[%clk 0:02:53]}  cxd4 {[%clk 0:02:28]} 16. Bxa8 {[%clk 0:02:52]}  Qxa8 {[%clk 0:02:29]} 17. f3 {[%clk 0:02:41]}  e5 {[%clk 0:02:28]} 18. Bd2 {[%clk 0:02:40]}  Nc5 {[%clk 0:02:28]} 19. Qd1 {[%clk 0:02:35]}  e4 {[%clk 0:02:27]} 20. fxe4 {[%clk 0:02:34]}  Nxe4 {[%clk 0:02:27]} 21. Bf4 {[%clk 0:02:32]}  d3 {[%clk 0:01:50]} 22. Qxd3 {[%clk 0:02:29]}  Rd8 {[%clk 0:01:03]} 23. Qf3 {[%clk 0:02:21]}  Bd4+ {[%clk 0:01:03]} 24. Kg2 {[%clk 0:02:20]}  g5 {[%clk 0:01:02]} 25. Rae1 {[%clk 0:02:18]}  f5 {[%clk 0:00:59]} 26. Bxg5 {[%clk 0:01:31]}  Nxg5 {[%clk 0:01:00]} 27. Qxa8 {[%clk 0:01:31]}  Rxa8 {[%clk 0:01:00]} 28. Rxf5 {[%clk 0:01:32]}  h6 {[%clk 0:00:53]} 29. Re7 {[%clk 0:01:25]}  Bc5 {[%clk 0:00:46]} 30. Re2 {[%clk 0:01:17]}  Rd8 {[%clk 0:00:40]} 31. h4 {[%clk 0:01:17]}  Nf7 {[%clk 0:00:40]} 32. Rd5 {[%clk 0:01:16]}  Rxd5 {[%clk 0:00:31]} 33. cxd5 {[%clk 0:01:16]}  Kg7 {[%clk 0:00:29]} 34. g4 {[%clk 0:01:14]}  Nd6 {[%clk 0:00:17]} 35. Re7+ {[%clk 0:01:08]}  Kf6 {[%clk 0:00:15]} 36. Rxa7 {[%clk 0:01:09]}  Nc4 {[%clk 0:00:13]} 37. b3 {[%clk 0:01:02]}  Ne3+ {[%clk 0:00:13]} 38. Kf3 {[%clk 0:01:02]}  Nxd5 {[%clk 0:00:14]} 39. a4 {[%clk 0:01:00]}  Ne7 {[%clk 0:00:09]} 40. Ke4 {[%clk 0:00:56]}  Ng6 {[%clk 0:00:08]} 41. h5 {[%clk 0:00:56]}  Ne5 {[%clk 0:00:08]} 42. a5 {[%clk 0:00:43]}  bxa5 {[%clk 0:00:04]} 43. Ra6+ {[%clk 0:00:43]}  Kg5 {[%clk 0:00:02]} 44. Kxe5 {[%clk 0:00:43]}  Kxg4 {[%clk 0:00:02]} 45. Rxh6 {[%clk 0:00:43]} 1-0


[Site "https://www.chess.com"]

[Event "Titled Tuesday Blitz May 25 2021"]
[White "Nouri, Alekhine"]
[Black "Skuhala, Barbara"]
[WhiteFideId "5216184"]
[BlackFideId "14605465"]
[WhiteElo "1894"]
[BlackElo "2156"]
[Result "1-0"]
[Round "05"]
[TimeControl "180+1"]
[Date "2021.05.25"]
[WhiteClock "0:01:11"]
[BlackClock "0:00:09"]

1. e4 {[%clk 0:02:47]}  c5 {[%clk 0:02:59]} 2. Nc3 {[%clk 0:02:47]}  a6 {[%clk 0:02:58]} 3. g3 {[%clk 0:02:47]}  b5 {[%clk 0:02:58]} 4. Bg2 {[%clk 0:02:48]}  Bb7 {[%clk 0:02:59]} 5. Nh3 {[%clk 0:02:48]}  e6 {[%clk 0:02:59]} 6. O-O {[%clk 0:02:49]}  Ne7 {[%clk 0:02:59]} 7. f4 {[%clk 0:02:49]}  d5 {[%clk 0:02:59]} 8. d3 {[%clk 0:02:50]}  g6 {[%clk 0:02:59]} 9. f5 {[%clk 0:02:50]}  gxf5 {[%clk 0:02:57]} 10. exf5 {[%clk 0:02:50]}  Nxf5 {[%clk 0:02:57]} 11. Rxf5 {[%clk 0:02:50]}  exf5 {[%clk 0:02:57]} 12. Nf4 {[%clk 0:02:50]}  Bg7 {[%clk 0:02:46]} 13. Ncxd5 {[%clk 0:02:50]}  Bxd5 {[%clk 0:02:44]} 14. Nxd5 {[%clk 0:02:51]}  O-O {[%clk 0:02:43]} 15. Bf4 {[%clk 0:02:51]}  Ra7 {[%clk 0:02:38]} 16. Qh5 {[%clk 0:02:49]}  Nc6 {[%clk 0:02:33]} 17. c3 {[%clk 0:02:46]}  Rd7 {[%clk 0:02:30]} 18. Qxf5 {[%clk 0:02:45]}  Ne7 {[%clk 0:02:26]} 19. Nxe7+ {[%clk 0:02:45]}  Rxe7 {[%clk 0:02:26]} 20. Be4 {[%clk 0:02:46]}  Rxe4 {[%clk 0:02:24]} 21. Qxe4 {[%clk 0:02:47]}  Re8 {[%clk 0:02:23]} 22. Qf3 {[%clk 0:02:45]}  b4 {[%clk 0:02:21]} 23. Bd2 {[%clk 0:02:32]}  a5 {[%clk 0:02:19]} 24. Rf1 {[%clk 0:02:31]}  Qe7 {[%clk 0:02:18]} 25. d4 {[%clk 0:02:30]}  cxd4 {[%clk 0:02:18]} 26. cxb4 {[%clk 0:02:30]}  axb4 {[%clk 0:02:13]} 27. Bxb4 {[%clk 0:02:30]}  Qd7 {[%clk 0:02:10]} 28. Re1 {[%clk 0:02:21]}  Rxe1+ {[%clk 0:02:05]} 29. Bxe1 {[%clk 0:02:22]}  d3 {[%clk 0:02:02]} 30. Bd2 {[%clk 0:01:53]}  Bxb2 {[%clk 0:01:59]} 31. Qe4 {[%clk 0:01:52]}  Bg7 {[%clk 0:01:53]} 32. a4 {[%clk 0:01:48]}  h6 {[%clk 0:01:51]} 33. a5 {[%clk 0:01:46]}  h5 {[%clk 0:01:42]} 34. Kg2 {[%clk 0:01:43]}  Qb5 {[%clk 0:01:30]} 35. Qa8+ {[%clk 0:01:34]}  Kh7 {[%clk 0:01:29]} 36. a6 {[%clk 0:01:34]}  f5 {[%clk 0:01:03]} 37. Qb7 {[%clk 0:01:31]}  Qe5 {[%clk 0:00:58]} 38. Qf3 {[%clk 0:01:26]}  Qd4 {[%clk 0:00:37]} 39. Qxf5+ {[%clk 0:01:23]}  Kg8 {[%clk 0:00:37]} 40. Qe6+ {[%clk 0:01:22]}  Kh7 {[%clk 0:00:35]} 41. Qf5+ {[%clk 0:01:19]}  Kg8 {[%clk 0:00:34]} 42. Qxh5 {[%clk 0:01:19]}  Qb2 {[%clk 0:00:11]} 43. Qe8+ {[%clk 0:01:18]}  Kh7 {[%clk 0:00:10]} 44. Qe4+ {[%clk 0:01:18]}  Kg8 {[%clk 0:00:10]} 45. Qxd3 {[%clk 0:01:18]}  Qa2 {[%clk 0:00:10]} 46. h4 {[%clk 0:01:13]}  Qa4 {[%clk 0:00:10]} 47. h5 {[%clk 0:01:13]}  Kh8 {[%clk 0:00:09]} 48. h6 {[%clk 0:01:13]}  Bf8 {[%clk 0:00:09]} 49. Bc3+ {[%clk 0:01:11]} 1-0


[Site "https://www.chess.com"]

[Event "Titled Tuesday Blitz May 25 2021"]
[White "Petriashvili, Nikoloz"]
[Black "Kovalev, Vladislav"]
[WhiteFideId "13611216"]
[BlackFideId "13504398"]
[WhiteElo "2430"]
[BlackElo "2573"]
[Result "1-0"]
[Round "05"]
[TimeControl "180+1"]
[Date "2021.05.25"]
[WhiteClock "0:00:08"]
[BlackClock "0:00:20"]

1. d4 {[%clk 0:03:00]}  Nf6 {[%clk 0:03:00]} 2. c4 {[%clk 0:03:00]}  g6 {[%clk 0:03:00]} 3. Nc3 {[%clk 0:03:00]}  Bg7 {[%clk 0:03:01]} 4. e4 {[%clk 0:03:00]}  d6 {[%clk 0:03:02]} 5. Be2 {[%clk 0:03:01]}  O-O {[%clk 0:03:02]} 6. Be3 {[%clk 0:03:01]}  c5 {[%clk 0:03:02]} 7. d5 {[%clk 0:03:00]}  e6 {[%clk 0:03:02]} 8. Nf3 {[%clk 0:03:00]}  exd5 {[%clk 0:03:02]} 9. cxd5 {[%clk 0:03:01]}  Re8 {[%clk 0:02:49]} 10. Nd2 {[%clk 0:03:01]}  Na6 {[%clk 0:02:49]} 11. O-O {[%clk 0:02:59]}  Nc7 {[%clk 0:02:49]} 12. a4 {[%clk 0:02:59]}  b6 {[%clk 0:02:49]} 13. Bg5 {[%clk 0:02:54]}  h6 {[%clk 0:02:40]} 14. Bh4 {[%clk 0:02:54]}  Rb8 {[%clk 0:02:34]} 15. Re1 {[%clk 0:02:42]}  a6 {[%clk 0:02:32]} 16. Bf1 {[%clk 0:02:38]}  b5 {[%clk 0:02:30]} 17. axb5 {[%clk 0:02:38]}  axb5 {[%clk 0:02:31]} 18. b4 {[%clk 0:01:42]}  cxb4 {[%clk 0:01:56]} 19. Na2 {[%clk 0:01:41]}  Ra8 {[%clk 0:01:57]} 20. Nxb4 {[%clk 0:01:38]}  Rxa1 {[%clk 0:01:56]} 21. Qxa1 {[%clk 0:01:39]}  g5 {[%clk 0:01:57]} 22. Bg3 {[%clk 0:01:11]}  Nxe4 {[%clk 0:01:27]} 23. Qc1 {[%clk 0:01:06]}  Nxg3 {[%clk 0:01:26]} 24. Rxe8+ {[%clk 0:01:05]}  Nxe8 {[%clk 0:01:06]} 25. hxg3 {[%clk 0:01:06]}  Bd7 {[%clk 0:01:04]} 26. Nb3 {[%clk 0:00:57]}  Qb6 {[%clk 0:00:50]} 27. Nc6 {[%clk 0:00:55]}  Nc7 {[%clk 0:00:42]} 28. Nb4 {[%clk 0:00:52]}  Be5 {[%clk 0:00:31]} 29. g4 {[%clk 0:00:26]}  Na6 {[%clk 0:00:30]} 30. Nc6 {[%clk 0:00:21]}  Nc5 {[%clk 0:00:28]} 31. Nxe5 {[%clk 0:00:12]}  Nxb3 {[%clk 0:00:27]} 32. Nxd7 {[%clk 0:00:12]}  Qxf2+ {[%clk 0:00:14]} 33. Kxf2 {[%clk 0:00:12]}  Nxc1 {[%clk 0:00:15]} 34. Bxb5 {[%clk 0:00:12]}  Nb3 {[%clk 0:00:14]} 35. Ke3 {[%clk 0:00:10]}  Kg7 {[%clk 0:00:14]} 36. Bc4 {[%clk 0:00:10]}  Na5 {[%clk 0:00:14]} 37. Kd4 {[%clk 0:00:09]}  Nb7 {[%clk 0:00:13]} 38. Ba6 {[%clk 0:00:09]}  Nd8 {[%clk 0:00:14]} 39. Nb6 {[%clk 0:00:08]}  f5 {[%clk 0:00:11]} 40. gxf5 {[%clk 0:00:07]}  Kf6 {[%clk 0:00:12]} 41. Nc4 {[%clk 0:00:08]}  h5 {[%clk 0:00:13]} 42. Bc8 {[%clk 0:00:07]}  Nf7 {[%clk 0:00:12]} 43. Be6 {[%clk 0:00:07]}  h4 {[%clk 0:00:12]} 44. Bxf7 {[%clk 0:00:06]}  g4 {[%clk 0:00:13]} 45. Ke3 {[%clk 0:00:06]}  h3 {[%clk 0:00:13]} 46. gxh3 {[%clk 0:00:07]}  gxh3 {[%clk 0:00:14]} 47. Kf3 {[%clk 0:00:08]}  Kxf7 {[%clk 0:00:14]} 48. Nxd6+ {[%clk 0:00:08]}  Kf6 {[%clk 0:00:15]} 49. Nb7 {[%clk 0:00:08]}  Ke5 {[%clk 0:00:16]} 50. Kg3 {[%clk 0:00:07]}  Kxf5 {[%clk 0:00:16]} 51. d6 {[%clk 0:00:06]}  Ke6 {[%clk 0:00:17]} 52. Kxh3 {[%clk 0:00:06]}  Kd7 {[%clk 0:00:18]} 53. Kg4 {[%clk 0:00:07]}  Kc6 {[%clk 0:00:19]} 54. Kf5 {[%clk 0:00:08]}  Kxb7 {[%clk 0:00:20]} 55. Ke6 {[%clk 0:00:08]}  Kc8 {[%clk 0:00:20]} 56. Ke7 {[%clk 0:00:08]} 1-0


[Site "https://www.chess.com"]